fUSD/lending_fUSD_20251231
["ID","MTS","AMOUNT","RATE_DAILY","PERIOD"]
[400164401,1767163832395,-3246.99090431,0.00013587,2]
[400164402,1767163832406,-346.78075065,0.00013587,2]
[400164403,1767163832478,-8307.23268205,0.00013587,2]
[400164404,1767163832552,-631.85540748,0.00013587,2]
[400164410,1767163837248,1432.08,0.00013328,2]
[400164415,1767163838379,-285448.1602635,0.00013587,2]
[400164416,1767163838391,-17401.00640134,0.00013587,2]
[400164417,1767163838441,-15409.06791666,0.00013587,2]
[400164418,1767163838454,-7960.0,0.00013587,2]
[400164419,1767163838504,-1341.69773257,0.00013587,2]
[400164420,1767163838516,-1260.0,0.00013587,2]
[400164421,1767163838528,-1118.10003,0.00013587,2]
[400164422,1767163838539,-263.37193928,0.00013587,2]
[400164592,1767163840410,-7880.31089945,0.00013587,2]
[400164595,1767163840423,-2175.02066338,0.00013587,2]
[400164597,1767163840435,-1109.86639144,0.00013587,2]
[400164599,1767163840447,-1104.13580302,0.00013587,2]
[400164601,1767163840460,-8968.96,0.00013587,2]
[400164629,1767163840711,-999.99995,0.00013587,2]
[400164724,1767163841607,-1.7e-07,0.00013587,2]
[400164983,1767163844119,-748.6763139,0.00013587,2]
[400164992,1767163844186,-49699.31148721,0.00013587,2]
[400164994,1767163844198,-3874.85299278,0.00013587,2]
[400165205,1767163846296,-3838.64415084,0.00013587,2]
[400165208,1767163846309,-709.80589672,0.00013587,2]
[400165217,1767163846361,-20495.6975725,0.00013587,2]
[400165219,1767163846374,-3441.98680512,0.00013587,2]
[400165225,1767163846429,-2183.75458493,0.00013587,2]
[400165228,1767163846441,-154296.18406026,0.00013587,2]
[400165256,1767163846705,-1190.56648733,0.00013587,2]
[400165258,1767163846716,-1203.37088605,0.00013587,2]
[400165260,1767163846728,-611.68963455,0.00013587,2]
[400165262,1767163846740,-433.02848958,0.00013587,2]
[400165264,1767163846752,-274.18,0.00013587,2]
[400165267,1767163846763,-1185.3213471,0.00013587,2]
[400165269,1767163846775,-2245.3092668,0.00013587,2]
[400165271,1767163846787,-404.72580003,0.00013587,2]
[400165273,1767163846801,-745.7042,0.00013587,2]
[400165275,1767163846814,-423.74647872,0.00013587,2]
[400165278,1767163846826,-140653.36558445,0.00013587,2]
[400165280,1767163846841,-3217.68910917,0.00013587,2]
[400165388,1767163861453,20238.67,0.00013355,2]
[400165389,1767163888918,500.0,0.00030137,120]
[400165400,1767163932910,500.0,0.00030137,120]
[400165401,1767163961197,728.12,0.00030137,120]
[400165421,1767164128960,257.28,0.00013037,2]
[400165423,1767164132876,175.53182734,0.00013478,2]
[400165535,1767164237966,24148.65,0.00012987,2]
[400165541,1767164297530,150.0,0.00012964,2]
[400165549,1767164314484,-150.73404556,0.00013513,2]
[400165550,1767164314509,-193.31062113,0.00013513,2]
[400165551,1767164317642,-162.41595992,0.00013513,2]
[400165552,1767164319810,-282.90204108,0.00013513,2]
[400165553,1767164321348,-73.37137787,0.00013513,2]
[400165554,1767164321373,-150.0,0.00013513,2]
[400165555,1767164321402,-150.0,0.00013513,2]
[400165556,1767164321428,-54.14778118,0.00013513,2]
[400165557,1767164325446,-254.28414398,0.00013513,2]
[400165558,1767164328581,-169.89062818,0.00013513,2]
[400165559,1767164331741,-21.67744666,0.00013513,2]
[400165560,1767164331769,-150.0,0.00013513,2]
[400165561,1767164331792,-107.79277518,0.00013513,2]
[400165562,1767164333911,-42.20722482,0.00013513,2]
[400165563,1767164333935,-150.0,0.00013513,2]
[400165564,1767164333958,-39.56148359,0.00013513,2]
[400165565,1767164336069,-110.43851641,0.00013513,2]
[400165566,1767164336349,-91.7242845,0.00013513,2]
[400165571,1767164380594,1393.7,0.00012879,2]
[400165579,1767164419424,-58.2757155,0.00013513,2]
[400165580,1767164419449,-165.12680531,0.00013513,2]
[400165581,1767164419474,-172.42734583,0.00013513,2]
[400165582,1767164435093,-88.57265417,0.00013513,2]
[400165583,1767164435119,-77.32126833,0.00013522,2]
[400165584,1767164437143,-176.37125816,0.00013522,2]
[400165585,1767164439281,-107.47319976,0.00013522,2]
[400165586,1767164439312,-195.57434488,0.00013522,2]
[400165587,1767164461354,1046.87343686,0.0001346,2]
[400165595,1767164580843,172.44,0.00010395,2]
[400165598,1767164632367,2375.26,0.00012877,2]
[400165599,1767164642179,1175.72159365,0.0001346,2]
[400165600,1767164649305,1000.0,0.00013487,2]
[400165601,1767164661697,25343.4697,0.00013487,2]
[400165602,1767164667751,2500.0,0.00013487,2]
[400165603,1767164689504,-340.7428582,0.0001351,2]
[400165604,1767164692725,-259.44808766,0.0001351,2]
[400165613,1767164854430,-81.80905414,0.0001351,2]
[400165614,1767164854457,-231.20441908,0.0001352,2]
[400165615,1767164855952,-93.8447345,0.0001352,2]
[400165616,1767164855977,-2.74188352,0.00013522,2]
[400165617,1767164856001,-84.60862457,0.00013522,2]
[400165632,1767164959521,-175.9029752,0.0001352,2]
[400165633,1767164959546,-150.99135927,0.00013521,2]
[400165636,1767165020578,-149.00864073,0.00013521,2]
[400165637,1767165020605,-3.88375162,0.00013521,2]
[400165638,1767165023839,-177.0797907,0.00013521,2]
[400165640,1767165031411,-175.90297518,0.0001352,2]
[400165641,1767165031422,-80.03645768,0.00013521,2]
[400165642,1767165031432,-66.39137543,0.00013522,2]
[400165643,1767165031442,-300.0,0.00013548,2]
[400165644,1767165031452,-411.80268287,0.00013548,2]
[400165645,1767165031463,-682.0,0.00013565,2]
[400165646,1767165031473,-300.0,0.00013567,2]
[400165647,1767165031484,-1200.0,0.00013567,2]
[400165648,1767165031493,-300.0,0.00013567,2]
[400165649,1767165031504,-162.16080322,0.00013568,2]
[400165650,1767165031514,-150.0,0.00013568,2]
[400165651,1767165031524,-500.0,0.00013568,2]
[400165652,1767165031534,-150.0,0.00013568,2]
[400165653,1767165031544,-175.8191271,0.00013568,2]
[400165654,1767165031555,-150.0,0.00013568,2]
[400165655,1767165031566,-150.0,0.00013568,2]
[400165656,1767165031576,-150.0,0.00013568,2]
[400165657,1767165031586,-14710.0620299,0.00013577,2]
[400165658,1767165031596,-730.85,0.00013579,2]
[400165659,1767165031607,-150.0,0.00013586,2]
[400165660,1767165031616,-500.0,0.00013586,2]
[400165661,1767165031626,-500.0,0.00013586,2]
[400165662,1767165031636,-500.0,0.00013586,2]
[400165663,1767165031646,-500.0,0.00013586,2]
[400165664,1767165031657,-244.78784423,0.00013586,2]
[400165665,1767165031666,-326.89433447,0.00013586,2]
[400165666,1767165031677,-500.0,0.00013586,2]
[400165667,1767165031687,-500.0,0.00013586,2]
[400165668,1767165031697,-60627.65930891,0.00013587,2]
[400165669,1767165031710,-296.0765777,0.00013587,2]
[400165671,1767165031721,-3794.84900764,0.00013587,2]
[400165673,1767165031733,-2205.88592063,0.00013587,2]
[400165674,1767165031749,-815.86407937,0.00013587,2]
[400165675,1767165031761,-1188.0,0.00013587,2]
[400165676,1767165031777,-6213.34386554,0.00013587,2]
[400165678,1767165031789,-35259.35020731,0.00013587,2]
[400165680,1767165031801,-4340.0,0.00013587,2]
[400165681,1767165031816,-877.5,0.00013587,2]
[400165683,1767165031828,-503.95767699,0.00013587,2]
[400165684,1767165031839,-1503.5799839,0.00013587,2]
[400165705,1767165034749,-151.0,0.00013587,2]
[400165706,1767165034773,-15.66,0.00013587,2]
[400165707,1767165034918,500.0,0.00013424,2]
[400165708,1767165035067,500.0,0.00013479,2]
[400165709,1767165037515,-364.0,0.00013534,2]
[400165710,1767165037526,-135.34,0.00013587,2]
[400165711,1767165037535,-228450.00757537,0.00013587,2]
[400165857,1767165039666,-893.25,0.00013587,2]
[400165929,1767165040317,-1.7e-07,0.00013587,2]
[400166373,1767165044572,-969.04,0.00013587,2]
[400166509,1767165045877,-1585.57444177,0.00013587,2]
[400166511,1767165045892,-633.850205,0.00013587,2]
[400166513,1767165045903,-2505.35903128,0.00013587,2]
[400167092,1767165093167,150.83,0.00013315,2]
[400167093,1767165093204,663.109,0.00013315,2]
[400167094,1767165093945,-495.68879679,0.00013522,2]
[400167095,1767165095460,-280.24151982,0.00013522,2]
[400167096,1767165098029,-194.00455168,0.00013522,2]
[400167099,1767165103017,-281.54429759,0.00013522,2]
[400167101,1767165104503,-186.80973758,0.00013522,2]
[400167110,1767165105966,-160.75987812,0.00013522,2]
[400167119,1767165110199,-180.42847508,0.00013522,2]
[400167120,1767165111741,-311.98380418,0.00013522,2]
[400167121,1767165114094,-195.78404405,0.00013522,2]
[400167134,1767165118499,-500.0,0.00013522,2]
[400167138,1767165120057,-167.84776934,0.00013522,2]
[400167139,1767165121567,-202.62079403,0.00013522,2]
[400167141,1767165123439,-156.60302264,0.00013522,2]
[400167142,1767165126524,-214.45265973,0.00013522,2]
[400167152,1767165139393,-49.41731261,0.00013522,2]
[400167153,1767165139417,-170.11856859,0.00013522,2]
[400167154,1767165139495,500.0,0.00012868,3]
[400167180,1767165218993,166.66,0.00012329,2]
[400167181,1767165219178,166.66,0.00012565,2]
[400167182,1767165219362,166.66,0.00012802,2]
[400167183,1767165219557,166.66,0.00013038,2]
[400167184,1767165219766,166.66,0.00013275,2]
[400167189,1767165249273,150.0,0.00013425,2]
[400167190,1767165249390,158.71398149,0.00013425,2]
[400167191,1767165249437,160.19111312,0.0001348,2]
[400167192,1767165249571,150.0,0.00013425,2]
[400167193,1767165249740,150.0,0.0001348,2]
[400167197,1767165275148,-166.66,0.00013512,2]
[400167198,1767165275174,-70.83106888,0.00013522,2]
[400167199,1767165275199,-81.58456251,0.00013522,2]
[400167214,1767165315176,3446.526,0.00013487,2]
[400167302,1767165365865,569.0,0.00013425,2]
[400167303,1767165366105,569.0,0.0001348,2]
[400167321,1767165446589,200.0,0.00013063,2]
[400167322,1767165447179,207.4,0.00013063,2]
[400167323,1767165447811,215.0738,0.00013063,2]
[400167324,1767165448430,-210.95967573,0.00013522,2]
[400167325,1767165448453,-330.75854892,0.00013522,2]
[400167326,1767165448493,223.0315306,0.00013063,2]
[400167327,1767165449133,231.28369723,0.00013063,2]
[400167328,1767165449769,239.84119403,0.00013063,2]
[400167329,1767165450404,375.99271304,0.00013063,2]
[400167330,1767165450530,-211.78450564,0.00013522,2]
[400167331,1767165453212,-35.66618852,0.00013522,2]
[400167332,1767165453236,-125.76055205,0.00013528,2]
[400167333,1767165456475,-26.70650341,0.00013528,2]
[400167334,1767165456503,-129.92980906,0.00013535,2]
[400167336,1767165479513,3220.36799688,0.00013489,2]
[400167339,1767165554019,587.77,0.00012875,2]
[400167340,1767165581884,10011.57008176,0.00012854,2]
[400167341,1767165581918,52731.00991824,0.00012854,2]
[400167343,1767165641692,-170.48221519,0.00013535,2]
[400167344,1767165643795,-73.67462532,0.00013535,2]
[400167345,1767165643821,-20.07019094,0.00013535,2]
[400167346,1767165643845,-118.65070233,0.00013535,2]
[400167347,1767165645767,-300.86586413,0.00013535,2]
[400167349,1767165675184,504.0,0.00013424,2]
[400167350,1767165675341,504.0,0.00013479,2]
[400167352,1767165681676,2329.24,0.00012845,2]
[400167353,1767165683177,263.28981438,0.00013489,2]
[400167354,1767165693180,744.8,0.00013315,2]
[400167355,1767165699891,1000.0,0.00012831,2]
[400167362,1767165770458,7685.97,0.00012838,2]
[400167364,1767165816453,1000000.0,0.00013486,2]
[400167373,1767165879326,178.41,0.00012861,2]
[400167374,1767165879987,-195.64267054,0.00013534,2]
[400167375,1767165883324,-192.99831103,0.00013534,2]
[400167376,1767165886624,-115.35901843,0.00013534,2]
[400167377,1767165886649,-229.80104247,0.00013535,2]
[400167378,1767165886673,-2.90466608,0.00013535,2]
[400167380,1767165889783,-250.0,0.00013535,2]
[400167385,1767165941722,-8.09533392,0.00013535,2]
[400167386,1767165941747,-150.0,0.00013578,2]
[400167387,1767165941771,-437.42151972,0.00013578,2]
[400167388,1767165943265,-183.45862217,0.00013578,2]
[400167389,1767165945285,849779.86445709,0.00013486,2]
[400167392,1767165958147,-5109.69647839,0.00013486,2]
[400167393,1767165960928,-10000.01,0.00013486,2]
[400167394,1767165964149,-10000.01,0.00013486,2]
[400167395,1767165968206,672.910108,7.945e-05,2]
[400167398,1767166017273,-240.72728583,0.00013443,2]
[400167399,1767166019858,-244.70273456,0.00013443,2]
[400167400,1767166021887,-410.47692704,0.00013443,2]
[400167401,1767166023936,-177.5113,0.00013443,2]
[400167402,1767166025564,-526.70065048,0.00013443,2]
[400167403,1767166027043,-256.0,0.00013443,2]
[400167404,1767166029894,-325.56477699,0.00013443,2]
[400167405,1767166032744,-192.85106938,0.00013443,2]
[400167406,1767166035723,-162.74,0.0001305,2]
[400167407,1767166037171,-185.56190518,0.0001305,2]
[400167408,1767166038690,-256.79390013,0.0001305,2]
[400167409,1767166044848,2955.04812144,0.00012842,2]
[400167410,1767166044871,3627.95822944,0.00012842,2]
[400167411,1767166044895,3627.95822944,0.00012842,2]
[400167412,1767166044918,3627.95822944,0.00012842,2]
[400167413,1767166044945,3627.95822944,0.00012842,2]
[400167414,1767166044968,3627.95822944,0.00012842,2]
[400167415,1767166044991,3627.95822944,0.00012842,2]
[400167416,1767166045014,3627.95822944,0.00012842,2]
[400167417,1767166045036,3627.95822944,0.00012842,2]
[400167418,1767166045059,3627.95822944,0.00012842,2]
[400167419,1767166045159,-309.00967224,0.00012842,2]
[400167420,1767166047901,-664.48357213,0.00012842,2]
[400167421,1767166050285,-166.39478085,0.00012842,2]
[400167422,1767166053478,-574.09988407,0.00012842,2]
[400167423,1767166056056,-164.23543657,0.00012842,2]
[400167424,1767166061696,-203.84285119,0.00012842,2]
[400167425,1767166062942,999.0,0.00012722,3]
[400167427,1767166063827,-264.72632509,0.00012842,2]
[400167428,1767166070933,-175.20855862,0.00012842,2]
[400167430,1767166079250,-476.43839649,0.00012842,2]
[400167431,1767166085482,-252.27176357,0.00012841,2]
[400167432,1767166087610,-47.72823643,0.00012841,2]
[400167433,1767166087635,-180.41434914,0.00012842,2]
[400167434,1767166094466,1617.474998,0.00012777,2]
[400167435,1767166094939,-163.77126412,0.00012842,2]
[400167436,1767166099749,-10000.0,0.00012842,2]
[400167439,1767166101630,-220.1102719,0.00012842,2]
[400167440,1767166104728,-168.15,0.00012842,2]
[400167442,1767166108000,8382.535002,0.00012625,2]
[400167443,1767166108032,10000.01,0.00012625,2]
[400167444,1767166108060,10000.01,0.00012625,2]
[400167445,1767166108088,10000.01,0.00012625,2]
[400167446,1767166108115,10000.01,0.00012625,2]
[400167447,1767166108143,10000.01,0.00012625,2]
[400167448,1767166108175,10000.01,0.00012625,2]
[400167449,1767166108202,10000.01,0.00012625,2]
[400167450,1767166108231,10000.01,0.00012625,2]
[400167451,1767166108259,660.084998,0.00012625,2]
[400167453,1767166109265,228.142585,0.00012777,2]
[400167456,1767166111184,-253.19873588,0.00012842,2]
[400167463,1767166118146,9111.782417,0.0001,2]
[400167464,1767166118178,7873.7948212,0.0001,2]
[400167465,1767166118752,-170.90443543,0.00012842,2]
[400167466,1767166120290,-217.94258592,0.00012842,2]
[400167471,1767166125988,-500.0,0.00012842,2]
[400167472,1767166128068,-151.059341,0.00012842,2]
[400167475,1767166131975,-5000.0,0.00012842,2]
[400167477,1767166133331,-333.82944524,0.00012842,2]
[400167478,1767166135766,-160.34407081,0.00012842,2]
[400167485,1767166140359,-189.4833,0.00012842,2]
[400167486,1767166143041,-153.76809205,0.00012841,2]
[400167487,1767166146195,-343.0347923,0.00012841,2]
[400167488,1767166149640,-171.52941078,0.00012841,2]
[400167489,1767166151224,-161.69675482,0.00012841,2]
[400167490,1767166152788,-168.97095005,0.00012841,2]
[400167491,1767166155001,-159.31640209,0.00012841,2]
[400167492,1767166157685,-300.34525054,0.00012797,2]
[400167508,1767166159622,-231.21921311,0.00012797,2]
[400167553,1767166162910,-258.0,0.00012797,2]
[400167555,1767166166020,-76.41627645,0.00012797,2]
[400167556,1767166166047,-159.42475886,0.00012841,2]
[400167557,1767166166071,-231.43896469,0.00012841,2]
[400167558,1767166169118,-165.49172382,0.00012841,2]
[400167559,1767166171066,-183.75631029,0.00012841,2]
[400167560,1767166171319,-138.07646049,0.00012841,2]
[400167561,1767166174856,-174.64776622,0.00012841,2]
[400167562,1767166176422,-32.80274411,0.00012841,2]
[400167563,1767166176449,-180.32884553,0.00012841,2]
[400167564,1767166176475,-67.33252916,0.00012841,2]
[400167565,1767166177816,-265.5971327,0.00012841,2]
[400167566,1767166183036,-296.46383651,0.00012841,2]
[400167567,1767166183061,-132.64084968,0.00012842,2]
[400167569,1767166184493,425.492375,0.00012776,2]
[400167570,1767166185700,-296.66561182,0.00012842,2]
[400167571,1767166189923,-368.94471209,0.00012842,2]
[400167572,1767166191480,-373.02252176,0.00012842,2]
[400167573,1767166193599,-309.42347245,0.00012842,2]
[400167575,1767166198227,-190.57652755,0.00012841,2]
[400167576,1767166199655,-207.30157629,0.00012841,2]
[400167577,1767166205190,-418.60365147,0.00012841,2]
[400167578,1767166208254,-82.76249815,0.00012841,2]
[400167579,1767166208279,-267.89099218,0.00012841,2]
[400167587,1767166210932,-32.10900782,0.00012841,2]
[400167588,1767166210957,-186.35240868,0.00012841,2]
[400167589,1767166214580,-202.2247571,0.00012841,2]
[400167590,1767166218911,-173.10566553,0.00012841,2]
[400167591,1767166222081,-218.69480128,0.00012841,2]
[400167605,1767166225757,-181.65421159,0.00012841,2]
[400167610,1767166231209,-237.96815582,0.00012841,2]
[400167611,1767166231473,-255.0,0.00012841,2]
[400167612,1767166231501,-54.59317569,0.00012842,2]
[400167613,1767166231606,-477.78990494,0.00012842,2]
[400167614,1767166231630,-13363.11271418,0.00012842,2]
[400167616,1767166231642,-9989.59935634,0.00012842,2]
[400167621,1767166231738,-395.00000005,0.00012842,2]
[400167622,1767166231831,-329.96821791,0.00012842,2]
[400167623,1767166231841,-88.29814764,0.00012897,2]
[400167624,1767166231866,-567.57494383,0.00012897,2]
[400167625,1767166231878,-821.34460559,0.0001305,2]
[400167626,1767166231892,-1821.60408503,0.0001305,2]
[400167633,1767166233948,-500.0,0.0001305,2]
[400167634,1767166237772,-393.21898432,0.0001305,2]
[400167635,1767166237785,-825.89185212,0.0001305,2]
[400167636,1767166237799,-366.84006854,0.0001305,2]
[400167637,1767166237810,-250.0,0.00013309,2]
[400167638,1767166237820,-441.0,0.00013315,2]
[400167639,1767166237830,-157.68957014,0.00013315,2]
[400167640,1767166237840,-250.0,0.00013315,2]
[400167641,1767166237850,-441.0,0.0001337,2]
[400167642,1767166237860,-236.96083296,0.00013388,2]
[400167643,1767166237870,-441.0,0.00013425,2]
[400167644,1767166237880,-1659.65269646,0.00013443,2]
[400167645,1767166237889,-441.0,0.00013479,2]
[400167646,1767166237899,-150.0,0.00013484,2]
[400167647,1767166237909,-500.0,0.00013485,2]
[400167648,1767166237919,-500.0,0.00013485,2]
[400167649,1767166237929,-500.0,0.00013485,2]
[400167650,1767166237939,-500.0,0.00013485,2]
[400167651,1767166237949,-500.0,0.00013485,2]
[400167653,1767166237959,-500.0,0.00013485,2]
[400167655,1767166237972,-500.0,0.00013485,2]
[400167657,1767166237982,-500.0,0.00013485,2]
[400167660,1767166237992,-500.0,0.00013485,2]
[400167662,1767166238002,-500.0,0.00013485,2]
[400167664,1767166238012,-500.0,0.00013485,2]
[400167666,1767166238021,-500.0,0.00013485,2]
[400167668,1767166238031,-500.0,0.00013485,2]
[400167670,1767166238044,-500.0,0.00013485,2]
[400167672,1767166238056,-500.0,0.00013485,2]
[400167674,1767166238066,-500.0,0.00013485,2]
[400167676,1767166238075,-500.0,0.00013485,2]
[400167678,1767166238085,-500.0,0.00013485,2]
[400167680,1767166238094,-500.0,0.00013485,2]
[400167682,1767166238104,-500.0,0.00013485,2]
[400167684,1767166238114,-500.0,0.00013485,2]
[400167686,1767166238124,-500.0,0.00013485,2]
[400167688,1767166238134,-500.0,0.00013485,2]
[400167690,1767166238144,-500.0,0.00013485,2]
[400167692,1767166238154,-500.0,0.00013485,2]
[400167695,1767166238163,-500.0,0.00013485,2]
[400167697,1767166238173,-14.44737714,0.00013485,2]
[400167717,1767166238359,-485.55262286,0.00013485,2]
[400167719,1767166238369,-365.1172065,0.00013485,2]
[400167722,1767166238379,-500.0,0.00013485,2]
[400167724,1767166238388,-500.0,0.00013485,2]
[400167726,1767166238398,-500.0,0.00013485,2]
[400167728,1767166238410,-155.37360363,0.00013485,2]
[400167730,1767166238426,-344.62639637,0.00013485,2]
[400167733,1767166238436,-500.0,0.00013485,2]
[400167735,1767166238446,-24.04819109,0.00013485,2]
[400167737,1767166238459,-475.95180891,0.00013485,2]
[400167739,1767166238468,-500.0,0.00013485,2]
[400167740,1767166238477,-400.0,0.00013485,2]
[400167741,1767166238487,-500.0,0.00013485,2]
[400167742,1767166238496,-500.0,0.00013485,2]
[400167743,1767166238505,-500.0,0.00013485,2]
[400167744,1767166238514,-500.0,0.00013485,2]
[400167745,1767166238524,-500.0,0.00013485,2]
[400167746,1767166238534,-500.0,0.00013485,2]
[400167747,1767166238543,-500.0,0.00013485,2]
[400167748,1767166238552,-500.0,0.00013485,2]
[400167749,1767166238562,-500.0,0.00013485,2]
[400167750,1767166238570,-500.0,0.00013485,2]
[400167751,1767166238579,-442.43637945,0.00013485,2]
[400167752,1767166238588,-500.0,0.00013485,2]
[400167753,1767166238597,-500.0,0.00013485,2]
[400167754,1767166238607,-500.0,0.00013485,2]
[400167756,1767166238617,-510.0011981,0.00013485,2]
[400167758,1767166238627,-545.55881052,0.00013485,2]
[400167760,1767166238636,-500.0,0.00013485,2]
[400167762,1767166238646,-430.99990757,0.00013485,2]
[400167764,1767166238655,-420.6861736,0.00013485,2]
[400167766,1767166238665,-1649.26235604,0.00013486,2]
[400167768,1767166238678,-41957.22804394,0.00013486,2]
[400167770,1767166238689,-7002.94570969,0.00013486,2]
[400167773,1767166238700,-588.0,0.00013486,2]
[400167894,1767166239762,-8736.45365512,0.00013486,2]
[400167898,1767166239774,-8947.21879473,0.00013486,2]
[400167901,1767166239786,-8943.78386462,0.00013486,2]
[400167904,1767166239798,-9077.54866152,0.00013486,2]
[400167907,1767166239809,-8943.84023489,0.00013486,2]
[400167921,1767166239873,-3864.46995742,0.00013486,2]
[400167950,1767166240060,-8894.3368452,0.00013486,2]
[400167952,1767166240071,-16505.33094135,0.00013486,2]
[400167954,1767166240080,-2902.3746,0.00013488,2]
[400167956,1767166240090,-441.0,0.00013534,2]
[400167958,1767166240099,-651.08,0.00013579,2]
[400167959,1767166240109,-500.0,0.00013581,2]
[400167961,1767166240119,-620.0,0.00013581,2]
[400167963,1767166240129,-151.0,0.00013581,2]
[400167965,1767166240138,-151.0,0.00013581,2]
[400167967,1767166240148,-151.0,0.00013581,2]
[400167968,1767166240158,-153.87469882,0.00013581,2]
[400167970,1767166240167,-250.0,0.00013581,2]
[400167972,1767166240178,-519.44946532,0.00013581,2]
[400167974,1767166240187,-322.6107,0.00013581,2]
[400167976,1767166240196,-500.0,0.00013581,2]
[400167978,1767166240206,-200.0,0.00013581,2]
[400167980,1767166240216,-200.0,0.00013581,2]
[400167981,1767166240225,-500.0,0.00013581,2]
[400167983,1767166240235,-500.0,0.00013581,2]
[400167985,1767166240245,-500.0,0.00013581,2]
[400167987,1767166240255,-500.0,0.00013581,2]
[400167989,1767166240265,-327.25869086,0.00013581,2]
[400167991,1767166240276,-200.0,0.00013581,2]
[400167992,1767166240285,-151.0,0.00013581,2]
[400167994,1767166240295,-151.0,0.00013581,2]
[400167996,1767166240305,-151.0,0.00013581,2]
[400167998,1767166240315,-151.0,0.00013581,2]
[400168000,1767166240324,-151.0,0.00013581,2]
[400168002,1767166240333,-151.0,0.00013581,2]
[400168004,1767166240343,-574.12855637,0.00013581,2]
[400168006,1767166240353,-151.0,0.00013581,2]
[400168007,1767166240363,-151.0,0.00013581,2]
[400168009,1767166240372,-166.63576745,0.00013581,2]
[400168011,1767166240382,-500.0,0.00013581,2]
[400168013,1767166240392,-500.0,0.00013581,2]
[400168015,1767166240401,-500.0,0.00013581,2]
[400168016,1767166240412,-500.0,0.00013581,2]
[400168018,1767166240421,-2000.0,0.00013587,2]
[400168020,1767166240432,-200.0,0.00013587,2]
[400168022,1767166240441,-200.0,0.00013587,2]
[400168024,1767166240450,-200.0,0.00013587,2]
[400168026,1767166240459,-150.99,0.00013588,2]
[400168028,1767166240468,-4999.99,0.00013588,2]
[400168029,1767166240478,-9999.99,0.00013588,2]
[400168031,1767166240488,-19544.12,0.00013588,2]
[400168033,1767166240497,-150.99,0.00013588,2]
[400168035,1767166240507,-299.99,0.00013588,2]
[400168037,1767166240516,-512.34,0.00013588,2]
[400168039,1767166240525,-999.99,0.00013588,2]
[400168040,1767166240535,-441.0,0.00013589,2]
[400168042,1767166240544,-2966.09,0.00013589,2]
[400168044,1767166240554,-28841.79,0.00013589,2]
[400168046,1767166240564,-9999.99,0.00013589,2]
[400168048,1767166240574,-441.0,0.00013644,2]
[400168050,1767166240583,-150.0,0.00013644,2]
[400168051,1767166240593,-500.0,0.00013644,2]
[400168053,1767166240602,-473.0,0.00013671,2]
[400168055,1767166240612,-500.0,0.00013698,2]
[400168057,1767166240621,-500.0,0.00013698,2]
[400168059,1767166240632,-500.0,0.00013698,2]
[400168061,1767166240641,-230.52371916,0.00013698,2]
[400168063,1767166240650,-500.0,0.00013698,2]
[400168065,1767166240660,-500.0,0.00013698,2]
[400168066,1767166240669,-500.0,0.00013698,2]
[400168068,1767166240680,-441.0,0.00013699,2]
[400168070,1767166240690,-708.6,0.00013699,2]
[400168072,1767166240699,-983.22,0.00013699,2]
[400168074,1767166240709,-200.0,0.00013699,2]
[400168076,1767166240718,-496.63,0.00013699,2]
[400168078,1767166240728,-10008.68,0.00013699,2]
[400168080,1767166240738,-500.0,0.00013699,2]
[400168082,1767166240747,-500.0,0.00013699,2]
[400168084,1767166240757,-156.66098212,0.00013699,2]
[400168085,1767166240766,-178.74,0.000137,2]
[400168087,1767166240776,-465.64,0.000137,2]
[400168089,1767166240786,-465.64,0.000137,2]
[400168091,1767166240796,-1265.26177406,0.00013723,2]